Cogmind - Beta 9.6 @@@ ROGUE MODE // 2020.04.21 @ 19:56:03 Player: Enzo Result: Destroyed by as-48001 with Assembled Heavy Rifle Performance ------------- Evolutions (0) 0 Regions Visited (4) 800 Robots Destroyed (17) 85 Value Destroyed (293) 293 Prototype IDs (7) 140 Alien Tech Used (0) 0 Bonus (300) 300 TOTAL SCORE: 1618 Bonus ------- Aligned with FarCom 300 Cogmind --------- Core Integrity 0/250 Matter 232/300 Energy 160/160 System Corruption 6% Temperature Cool (7) Movement Rolling (80) Location -9/Mines Parts ------- > --- POWER (1) -------- Light Nuclear Core > --- PROPULSION (2) --- Wheel Wheel > --- UTILITY (2) ------ Medium Storage Unit Terrain Scan Processor > --- WEAPON (2) ------- Improved Light Cannon > --- INVENTORY (8) ---- Structural Scanner Improved Terrain Scanner Medium Armor Plating Datajack Deploy-a-Sentry Deploy-a-Sentry Deploy-a-Sentry Peak State ------------ > --- POWER ------------ Light Nuclear Core > --- PROPULSION ------- Wheel Wheel > --- UTILITY ---------- Medium Storage Unit Supersonic Drone Bay > --- WEAPON ----------- Medium Laser Datajack > --- INVENTORY -------- Signal Interpreter Improved Terrain Scanner Terrain Scan Processor Medium Armor Plating Light Assault Rifle Mining Laser [Rating: 16] Favorites ----------- Power Light Nuclear Core Engine Ion Engine Power Core Light Nuclear Core Propulsion Wheel Wheel Wheel Utility Medium Storage Unit Device Structural Scanner Storage Medium Storage Unit Processor Terrain Scan Processor Protection Medium Armor Plating Weapon Assault Rifle Energy Gun Medium Laser Ballistic Gun Assault Rifle Ballistic Cannon Improved Light Cannon Special Weapon Mining Laser Special Melee Weapon Datajack Build | -11 -10 -10 -10 -9 ------- Run | Scr Mat Min Exi Min Slots Evolved . | . . . . . Power . | . . . . . Propulsion . | . . . . . Utility . | . . . . . Weapon . | . . . . . Parts Attached 33 | 8 8 1 4 12 Power 4 | 1 1 . . 2 Engine 2 | 1 . . . 1 Core 2 | . 1 . . 1 Reactor . | . . . . . Propulsion 4 | 3 1 . . . Treads . | . . . . . Leg . | . . . . . Wheel 4 | 3 1 . . . Hover . | . . . . . Flight . | . . . . . Utility 12 | 2 2 . 3 5 Device 4 | . 1 . 2 1 Storage 4 | 2 1 . . 1 Processor 2 | . . . 1 1 Hackware . | . . . . . Protection 2 | . . . . 2 Artifact . | . . . . . Weapon 13 | 2 4 1 1 5 Energy Gun 4 | . 2 . . 2 Energy Cannon . | . . . . . Ballistic Gun 5 | 2 2 1 . . Ballistic Cannon 1 | . . . . 1 Launcher . | . . . . . Special Weapon 2 | . . . . 2 Impact Weapon . | . . . . . Slashing Weapon . | . . . . . Piercing Weapon . | . . . . . Special Melee Weapon 1 | . . . 1 . Unidentified Prototypes 2 | . . . 2 . Parts Lost 5 | . 1 1 . 3 Power 1 | . . . . 1 Propulsion . | . . . . . Utility . | . . . . . Weapon 4 | . 1 1 . 2 Highest Loss Streak 2 | . 1 1 . 2 Average Slot Usage (%) 98 | . 99 97 98 96 Engine 6 | . 9 . . 7 Core 7 | . 4 14 14 6 Wheel 28 | . 28 28 28 28 Device 8 | . 7 14 12 6 Storage 16 | . 21 14 14 11 Processor 2 | . . . . 7 Energy Gun 9 | . 7 16 14 8 Ballistic Gun 9 | . 19 9 2 . Ballistic Cannon 3 | . . . . 10 Special Weapon 1 | . . . . 4 Special Melee Weapon 2 | . . . 11 1 Naked Turns . | . . . . . Heaviest Build 28 | 17 21 17 17 28 Greatest Support 26 | 26 20 20 20 20 Greatest Overweight (x) 1 | 1 1 . . 1 Average Overweight (x) . | . . . . . Largest Inventory Capacity 10 | 8 10 8 8 8 Average Capacity 7 | 6 8 8 8 7 Most Carried 9 | 5 9 8 8 8 Average Carried 6 | 1 7 8 7 7 Final Capacity 8 | 8 8 8 8 8 Final Carried 8 | 5 8 8 8 7 Class Distribution -------------------- 52% | Scavenger-Mutant 42% | Mutant 4% | Skirmisher Dominant Class ---------------- Mutant | -10/Materials Scavenger-Mutant | -10/Mines Scavenger-Mutant | -10/Exiles Scavenger-Mutant | -9/Mines Resources | -11 -10 -10 -10 -9 ----------- Run | Scr Mat Min Exi Min Matter Collected 756 | 318 273 17 . 148 Remotely . | . . . . . Salvage Created 526 | 114 365 27 . 20 Parts 30 | 11 16 3 . . Haulers Intercepted 1 | . 1 . . . Recyclers Shooed 1 | . 1 . . . Parts Field Recycled . | . . . . . Retrieved Matter . | . . . . . Parts Self-Destructed . | . . . . . Prevented . | . . . . . Kills | -11 -10 -10 -10 -9 ------- Run | Scr Mat Min Exi Min Combat Hostiles Destroyed 13 | . 7 2 . 4 Guns 10 | . 7 2 . 1 Cannons 3 | . . . . 3 Classes Destroyed 6 | 2 2 1 . 1 Tunneler 2 | 2 . . . . Hauler 1 | . 1 . . . Recycler 1 | 1 . . . . Swarmer 2 | . . 2 . . Grunt 7 | . 7 . . . Assembled 4 | . . . . 4 Best Kill Streak 4 | 2 4 2 . 3 Combat Bots Only 4 | . 4 2 . 3 Max Kills in Single Turn 1 | 1 1 1 . 1 Gunslinging . | . . . . . Exploded . | . . . . . Melee . | . . . . . Uniques/NPCs Destroyed . | . . . . . Combat | -11 -10 -10 -10 -9 -------- Run | Scr Mat Min Exi Min Damage Taken 851 | . 378 118 . 355 Core 261 | . 107 10 . 144 Absorbed by Shields . | . . . . . Core Remaining (%) 100 | 100 . . . . Volleys Fired 74 | 8 37 7 . 22 Largest 2 | 2 2 2 . 2 Hottest 115 | 40 85 115 . 100 Shots Fired 119 | 16 67 11 . 25 Gun 98 | 16 67 11 . 4 Cannon 14 | . . . . 14 Launcher . | . . . . . Special 7 | . . . . 7 Kinetic 98 | 16 66 2 . 14 Thermal 21 | . 1 9 . 11 Explosive . | . . . . . Electromagnetic . | . . . . . Robot Hit Streak 8 | 4 8 2 . 3 Robot Miss Streak 5 | 2 3 5 . 3 Penetration Max . | . . . . . Secondary Targets 2 | . 1 1 . . Max Gunslinging Chain 1 | . 1 1 . . Shots Hit Robots 62 | 10 41 4 . 7 Core Hits 28 | 4 16 3 . 5 Critical Hits 1 | 1 . . . . Critical Kills . | . . . . . Critical Parts Destroyed 1 | 1 . . . . Melee Attacks . | . . . . . Impact . | . . . . . Slashing . | . . . . . Piercing . | . . . . . Sneak Attacks . | . . . . . Combat Hostiles . | . . . . . Follow-up Attacks . | . . . . . Damage Inflicted 827 | 169 475 42 . 141 Guns 698 | 169 475 42 . 12 Cannons 129 | . . . . 129 Explosions . | . . . . . Melee . | . . . . . Ramming . | . . . . . Kinetic 771 | 169 458 15 . 129 Thermal 56 | . 17 27 . 12 Explosive . | . . . . . Electromagnetic . | . . . . . Impact . | . . . . . Slashing . | . . . . . Piercing . | . . . . . Highest Corruption 6 | . . . . 6 Average Corruption 6 | . . . . 6 Corruption Purged . | . . . . . Effects 6 | . . . . 6 Message Errors 1 | . . . . 1 Matter Fused 2 | . . . . 2 Data Loss (minor) 1 | . . . . 1 Targeting Errors 1 | . . . . 1 Weapon Failures 1 | . . . . 1 Overload Shots . | . . . . . Overflow Damage . | . . . . . Projectiles . | . . . . . Explosions . | . . . . . Melee . | . . . . . Knockbacks 2 | . . . . 2 Impact . | . . . . . Kinetic 2 | . . . . 2 Secondary . | . . . . . Self-Inflicted Damage . | . . . . . Shots . | . . . . . Rammed . | . . . . . Targets Rammed . | . . . . . Kicked . | . . . . . Crushed . | . . . . . Highest Temperature 218 | . 30 218 . 119 Average Temperature 55 | . 7 124 . 35 Received Heat Transfer 253 | . 213 . . 40 Effects 1 | . . 1 . . Interference 1 | . . 1 . . Siege Activations . | . . . . . Robots Corrupted . | . . . . . Combat Hostiles . | . . . . . Parts Fried . | . . . . . Impact Corruptions . | . . . . . Robots Melted . | . . . . . Combat Hostiles . | . . . . . Parts Melted . | . . . . . Heat Transferred 148 | . 37 74 . 37 Parts Sabotaged . | . . . . . Parts Stolen . | . . . . . Parts Stripped . | . . . . . Power Chain Reactions . | . . . . . Missiles Intercepted . | . . . . . Alert | -11 -10 -10 -10 -9 ------- Run | Scr Mat Min Exi Min Peak Influence 209 | 15 209 46 . 15 Average Influence 47 | 6 100 28 . . Maximum Alert Level 1 | . 1 . . . Low Security (%) 91 | 100 80 100 . 100 Level 1 8 | . 19 . . . Level 2 . | . . . . . Level 3 . | . . . . . Level 4 . | . . . . . Level 5 . | . . . . . High Security . | . . . . . Max Security . | . . . . . Squads Dispatched 2 | . 2 . . . Investigation 2 | . 2 . . . Extermination . | . . . . . Reinforcement . | . . . . . Assault . | . . . . . Garrison . | . . . . . Intercept . | . . . . . Construction Impeded . | . . . . . Haulers Reinforced . | . . . . . Stealth | -11 -10 -10 -10 -9 --------- Run | Scr Mat Min Exi Min Distress Signals . | . . . . . Communications Jammed . | . . . . . Distress Signals . | . . . . . Times Spotted 19 | . 10 3 . 6 Peak Tracking Total 5 | . 2 3 . 5 Tactical Retreats 1 | . . 1 . . Traps | -11 -10 -10 -10 -9 ------- Run | Scr Mat Min Exi Min Traps Triggered 2 | . 2 . . . Indirectly . | . . . . . Trap Hack Attempts . | . . . . . Triggered . | . . . . . Disarmed . | . . . . . Reprogrammed . | . . . . . Reused . | . . . . . Traps Extracted . | . . . . . Installed . | . . . . . Triggered . | . . . . . Machines | -11 -10 -10 -10 -9 ---------- Run | Scr Mat Min Exi Min Machines Disabled . | . . . . . Max in Single Turn . | . . . . . Machines Sabotaged . | . . . . . Garrisons Compromised . | . . . . . Overloaded Fab Kills . | . . . . . Fab Network Shutdowns . | . . . . . Hacking | -11 -10 -10 -10 -9 --------- Run | Scr Mat Min Exi Min Machines Accessed 5 | . 5 . . . Terminals 5 | . 5 . . . Fabricators . | . . . . . Repair Stations . | . . . . . Recycling Units . | . . . . . Scanalyzers . | . . . . . Garrison Access . | . . . . . Total Hacks 25 | . 25 . . . Successful 16 | . 16 . . . Failed 8 | . 8 . . . Catastrophic . | . . . . . Database Lockouts 1 | . 1 . . . Manual 17 | . 16 . 1 . Terminals 25 | . 25 . . . Fabricators . | . . . . . Repair Stations . | . . . . . Recycling Units . | . . . . . Scanalyzers . | . . . . . Garrison Access . | . . . . . Terminal Hacks 11 | . 11 . . . Robot Analysis 1 | . 1 . . . Prototype ID Bank 3 | . 3 . . . Alert Level 2 | . 2 . . . Locate Traps 2 | . 2 . . . Assault Status 1 | . 1 . . . Recall Investigation 1 | . 1 . . . Zone Layout 1 | . 1 . . . Fabricator Hacks . | . . . . . Repair Station Hacks . | . . . . . Recycling Unit Hacks . | . . . . . Scanalyzer . | . . . . . Garrison Access Hacks . | . . . . . Unauthorized Hacks 5 | . 5 . . . Terminals 5 | . 5 . . . Track 2 | . 2 . . . Assimilate 1 | . 1 . . . Botnet 1 | . 1 . . . Operators 1 | . 1 . . . Fabricators . | . . . . . Repair Stations . | . . . . . Recycling Units . | . . . . . Scanalyzers . | . . . . . Garrison Access . | . . . . . Data Cores Recovered . | . . . . . Used . | . . . . . Hacking Detections 5 | . 5 . . . Full Trace Events . | . . . . . Feedback Events . | . . . . . Feedback Blocked . | . . . . . Robot Schematics Acquired . | . . . . . Robots Built . | . . . . . Matter . | . . . . . Time . | . . . . . Total Robot Build Rating . | . . . . . Part Schematics Acquired . | . . . . . Parts Built . | . . . . . Matter . | . . . . . Time . | . . . . . Total Part Build Rating . | . . . . . Parts Repaired . | . . . . . Time . | . . . . . Parts Recycled . | . . . . . Recycled Matter . | . . . . . Retrieved Matter . | . . . . . Retrieved Components . | . . . . . Parts Scanalyzed . | . . . . . Part Schematics Acquired . | . . . . . Parts Damaged . | . . . . . Bothacking | -11 -10 -10 -10 -9 ------------ Run | Scr Mat Min Exi Min Used RIF Installer . | . . . . . Robots Hacked . | . . . . . Non-combat . | . . . . . Combat . | . . . . . Robot Hacks Applied . | . . . . . Relay Couplers Released . | . . . . . Robots Rewired . | . . . . . Allies Hacked . | . . . . . Hacks Repelled . | . . . . . Allies | -11 -10 -10 -10 -9 -------- Run | Scr Mat Min Exi Min Total Allies 1 | . 1 . . . Largest Group 1 | . 1 1 . . Highest-Rated Group 10 | . 10 10 . . Highest-Rated Ally 10 | . 10 10 . . Total Orders 2 | . . . . 2 EXPLORE 1 | . . . . 1 RETURN 1 | . . . . 1 Ally Attacks . | . . . . . Total Damage . | . . . . . Kills . | . . . . . Allies Corrupted . | . . . . . Allies Melted . | . . . . . Intel | -11 -10 -10 -10 -9 ------- Run | Scr Mat Min Exi Min Robot Analysis Total 1 | . 1 . . . Derelict Logs Recovered 1 | . . . . 1 Drone Launches 1 | . . . 1 . Drone Recoveries . | . . . . . Exploration | -11 -10 -10 -10 -9 ------------- Run | Scr Mat Min Exi Min Turns Passed 1238 | 138 455 58 215 372 Spaces Moved 980 | 102 343 47 246 242 Core 8 | 8 . . . . Treads . | . . . . . Legs . | . . . . . Wheels 972 | 94 343 47 246 242 Hover . | . . . . . Flight . | . . . . . Fastest Speed 50 | 50 80 80 80 80 Average Speed 82 | 85 83 80 80 83 Slowest Speed 100 | 100 90 80 80 90 Overloaded Moves . | . . . . . Propulsion Burnouts . | . . . . . Robots Hopped . | . . . . . Cave-ins Triggered 1 | . . . . 1 Exploration Rate (%) 44 | 4 50 12 66 91 Regions Visited 4 Branch Regions 3 Pre-discovered Areas . | . . . . . Known Exits Taken . | . . . . . Unknown Exits Taken 4 | 1 1 1 1 . Scrap Searched 2 | . . . . 2 Spaces Dug 7 | . . . . 7 Terrain Destroyed 8 | . . . . 8 Melee . | . . . . . Projectile 8 | . . . . 8 AOE . | . . . . . Actions | -11 -10 -10 -10 -9 --------- Run | Scr Mat Min Exi Min Total 1274 | 134 448 56 264 372 Wait 137 | 8 39 2 6 82 Move 975 | 101 342 46 245 241 Hop . | . . . . . Pick Up 26 | 7 11 . 3 5 Fast Attach 20 | 7 4 1 3 5 Attach 4 | 1 2 . . 1 Detach 1 | . . . 1 . Swap 9 | . 2 . 1 6 Drop 27 | 2 11 . 5 9 Fire 74 | 8 37 7 . 22 Melee . | . . . . . Ram . | . . . . . Kick . | . . . . . Crush . | . . . . . Escape Stasis 1 | . . . . 1 Rewire . | . . . . . Trap . | . . . . . Miscellaneous . | . . . . . Route ------- -11/Scrapyard -10/Materials (discovered 2 exits: [*Mat] / [*Min]) -10/Mines -10/Exiles -9/Mines (discovered 2 exits: [*Mat x2]) History --------- Turn | Location | Event 4 | -11/Scrapyard | Discovered new exit (range 15) 139 | -11/Scrapyard | Entered Materials 318 | -10/Materials | Build established: Mutant 479 | -10/Materials | Discovered new exit (range 16) 526 | -10/Materials | Discovered new exit (range 9) 550 | -10/Materials | Central database locked down 594 | -10/Materials | Entered Mines 594 | -10/Mines | Accompanied by 1 ally 648 | -10/Mines | Deemed a non-threat by the Exiles lab entrance 649 | -10/Mines | Discovered new exit (range 5) 652 | -10/Mines | Entered Exiles 673 | -10/Exiles | Met 8R-AWN 685 | -10/Exiles | Met EX-HEX 720 | -10/Exiles | Met EX-BIN 732 | -10/Exiles | Build established: Scavenger-Mutant 732 | -10/Exiles | Aligned with FarCom system 732 | -10/Exiles | Given EX-Vault access code 753 | -10/Exiles | Opened EX-Vault 758 | -10/Exiles | Found Prototype Processor 758 | -10/Exiles | Identified Modified TNC 762 | -10/Exiles | Found Prototype Device 762 | -10/Exiles | Identified Supersonic Drone Bay 769 | -10/Exiles | Found Deploy-a-Sentry 771 | -10/Exiles | Found Deploy-a-Sentry 780 | -10/Exiles | Found Deploy-a-Sentry 799 | -10/Exiles | Warned to stay clear of 0b10 Research branches 821 | -10/Exiles | Met EX-DEC 851 | -10/Exiles | Discovered new exit (range 12) 867 | -10/Exiles | Left Exiles lab with Deploy-a-Sentry 867 | -10/Exiles | Entered Mines 867 | -9/Mines | Accompanied by 1 ally 875 | -9/Mines | Discovered new exit (range 57) 881 | -9/Mines | Discovered new exit (range 40) 885 | -9/Mines | Assembled infested the area 1151 | -9/Mines | Crushed by falling debris 1152 | -9/Mines | Core integrity fell below 50% 1220 | -9/Mines | Learned Materials terminal intel 1226 | -9/Mines | Core integrity fell below 20% 1239 | -9/Mines | Destroyed by as-48001 with Assembled Heavy Rifle Last Messages --------------- 01160_ I1KCQ1W3BC#UWP:0=798O7 01165_ Acquired 28 matter. 01167_ Acquired Lgt. Nuclear Core. 01170_ as-92297 destroyed. 01176_ Acquired 6 matter. 01181_ System corrupted: Matter fused (-10). 01187_ as-91144 destroyed. 01189_ Med. Laser destroyed. 01190_ System corrupted: Imp. Light Cannon jammed. 01192_ System corrupted: Imp. Light Cannon targeting data glitched. 01196_ as-02543 destroyed. 01205_ Acquired 1 matter. 01208_ Acquired 8 matter. 01220_ System corrupted: Matter fused (-5). 01220_ Acquired 24 matter. 01220_ Acquired derelict log, extracted data. Data stored: Materials terminal intel. 01232_ as-59549 knocked back. 01238_ System corrupted: Component data lost. 01238_ as-59549 destroyed. Map ----- +----------------------------------------------------+ | ##??????????????????????????# #??????? | | ##???????????????????????### ???????? | | ##### ##???????################ ????????? | | #???##= ##??????# #????????? | | #??### #??????# ############## ??????????? | | ?#?## * ####???# #????????????# #??????????? | | ????# ! ##### #?????????#### #??????????? | | ????# ## ## #????????##[%# #?###??????? | | #?### ## ## ########????# !/ ## =##?????? | | ??## ## #??## ##???# #?????? | | ??# ##?# ##??## !#?????? | | ?## ## #?# ###### # ##?????? | | ??## ### ### ##### #####??????? | | #??########## ## #### #??????????? | | ????#?#????### ""# ## ##?????????? | | #?#?#???#??#?## #### """ #?????????? | | ?#?#????#?????### #??## """ #?????????? | | ??#???##??#?????# #???# """ ####?????????? | | ???##?#?#???????# #???## ##????????????? | | ??##????#????#### ##???## ## #?####????????? | | ?#?##??#?????# #????###### ### ##???????? | | ??##??#??????# """ #??????# = ## ##??????? | | #????????????# """ #??##??#! #### ##?????? | | #????????????# """ ####;###%!#??# ##????? | | ?????????????# # ! #?## ###??? | | ?????????????# a%@ ### ##?? | | ?????????????# #! ######### #?? | | ?????????????# # =#??????# ## #?? | | ?????????????#T###### ##????## ##?# #?? | | ?????????????##????## ##??## ##??? ##?? | | ??????????????????## #?## ##?????#??? | | ?????????????????## #?# #?????????? | | ?????????????????# #?# ##????????? | | ?????????????????# ### #????????? | | ?????????????????# #????????? | | ##########??###?# #????????? | | #?## ## ## #???###??? | | #?# ### #### ##?? | | #?# ! ### ## #?? | | #?##" %*%### #?### #?? | | ## #######??######=!#?## ##???## #??? | | ?# #?????????????#%%#??# ###?????## ### ###??? | | ?# ############### *#??# #????????## #?## #????? | | ?# #??# ########### #??# #????? | | ?################# #### #??# #????? | | ?????????????????# ################ #????? | | ?????????######### ######??????????# #????? | | ?????????# #???????????##### ## #????? | | ?####????# #### ## #??????????## ## #????? | | ## ####?# #??# ## ####???????# ## #????? | +----------------------------------------------------+ Best States ------------- Heat Dissipation 25 Energy Generation 14 Energy Capacity 265 Matter Stores 300 Matter Capacity 300 Sight Range 16 Terrain Scan Range 16 Terrain Scan Density 85 Armor Coverage 225 Evasion (%) 44 Item Schematics ----------------- None Robot Schematics ------------------ None Fabricated ------------ Nothing Alien Tech Used ----------------- None Achievements -------------- None Challenges ------------ None Game ------ Seed FireTiamatExpander Manual? 0 Play Time 00:17:07 Cumulative 23.5 hours Start 2020.04.21 @ 19:39:56 End 2020.04.21 @ 19:56:03 Sessions 1 Manual Loads 0 Difficulty Rogue Special Mode None Game No. 59 Rogue 59 Adventurer 0 Explorer 0 Win Type - Total 0 Types 0/0/0/0/0/0/0 Lore% 37 Gallery% 33 Achievement% 31 Wizard Run 0 Options --------- ASCII 0 Keyboard 0 Movement Numpad Keybinds 0 Fullscreen 2 Font 24/Smallcaps Map View 76x50 Tactical HUD 1 Map Filters NONE Filters NONE Steam 1 RUN: d67cd374-0c29-4039-b49c-7b60825cf7f6